bitfinex-derivatives/quotes_SOLF0:USTF0_20250819
["timestamp","ask_amount","ask_price","bid_price","bid_amount"]
[1755568919102,3.83230522,182.99,182.98,0.03614605]
[1755568919302,3.0,183.02,182.98,0.03614605]
[1755568919502,6.83199259,183.01,182.98,0.03614605]
[1755568919800,3.83199259,183.0,182.98,0.03614605]
[1755568920196,3.83199259,183.0,182.99,3.14]
[1755568920501,9.04727718,183.09,182.98,0.03614605]
[1755568920502,3.0,183.08,183.01,3.14]
[1755568920705,3.0,183.11,183.03,3.14]
[1755568920905,3.83673869,183.09,183.03,3.14]
[1755568921103,3.0,183.11,183.03,3.14]
[1755568921307,3.83691494,183.1,183.07,3.14]
[1755568921507,3.0,183.19,183.09,3.14]
[1755568921708,3.0,183.16,183.09,3.14]
[1755568922305,3.0,183.19,183.11,3.0467282]
[1755568922605,3.0,183.29,183.17,3.00522315]
[1755568922804,6.82633618,183.27,183.18,3.14]
[1755568923004,3.0,183.27,183.18,3.14]
[1755568923207,135.46,183.28,183.22,3.14]
[1755568923403,0.03670143,183.24,183.23,3.14]
[1755568924210,0.03670143,183.24,183.23,6.14522315]
[1755568924513,0.03670143,183.24,183.22,0.03671499]
[1755568925012,3.03670143,183.24,183.22,0.03671499]
[1755568925906,0.03670143,183.24,183.23,3.14]
[1755568927507,0.03670143,183.24,183.22,0.03671499]
[1755568927913,3.03670143,183.24,183.22,0.03671499]
[1755568928813,3.0,183.23,183.22,0.03671499]
[1755568930310,3.0,183.23,183.11,7.86931671]
[1755568931511,0.04114149,183.19,183.11,7.86931671]
[1755568933113,3.04114149,183.19,183.13,0.04034899]
[1755568935706,7.7704582,183.19,183.13,0.04034899]
[1755568936010,4.7704582,183.19,183.13,0.04034899]
[1755568936212,3.0,183.18,183.03,3.14]
[1755568936713,3.0,183.16,183.03,3.14]
[1755568936914,3.0,183.15,183.03,3.14]
[1755568937506,0.03450957,183.11,183.03,3.14]
[1755568942615,3.02,183.08,182.93,2.93]
[1755568943415,0.03992362,183.02,182.96,4.72931671]
[1755568943622,0.03992362,183.02,182.97,2.93]
[1755568944312,0.03992362,183.02,182.96,4.72931671]
[1755568944619,0.03992362,183.02,183.01,2.93]
[1755568945021,3.02,183.12,183.01,2.93]
[1755568949315,3.02,183.07,183.01,2.93]
[1755568951326,3.02,183.07,182.98,2.93]
[1755568952020,3.02,183.07,182.94,2.93]
[1755568954133,3.02,183.05,182.94,2.93]
[1755568954523,0.03896055,183.01,182.94,2.93]
[1755568960637,0.03896055,183.01,182.94,8.3936]
[1755568960935,0.03896055,183.01,182.94,2.93]
[1755568962242,3.05896055,183.01,182.94,2.93]
[1755568962434,3.05896055,183.01,182.87,4.72931671]
[1755568962633,3.05896055,183.01,182.9,2.93]
[1755568962833,3.02,183.01,182.9,2.93]
[1755568963741,0.03915196,182.97,182.9,2.93]
[1755568970146,3.02,182.96,182.85,2.93]
[1755568971041,0.03760425,182.92,182.85,2.93]
[1755568972548,0.03760425,182.92,182.85,8.3962]
[1755568972746,0.03760425,182.92,182.86,3.1]
[1755568973647,0.03760425,182.92,182.86,8.5659]
[1755568973942,0.03760425,182.92,182.87,3.1]
[1755568974148,0.03760425,182.92,182.88,3.1]
[1755568974352,0.03760425,182.92,182.89,3.1]
[1755568974650,3.14760425,182.92,182.84,8.5663]
[1755568975049,3.11,183.0,182.85,3.1]
[1755568975253,3.11,182.98,182.86,3.1]
[1755568975457,3.11,182.96,182.86,3.1]
[1755568975750,3.14717191,182.94,182.86,3.1]
[1755568976850,3.82110378,182.93,182.86,3.1]
[1755568977051,3.8209409,182.92,182.86,3.1]
[1755568977246,3.14717191,182.94,182.86,3.1]
[1755568977440,3.82272449,182.93,182.86,3.1]
[1755568977745,3.14717191,182.94,182.86,3.1]
[1755568979346,3.82584843,182.93,182.86,3.1]
[1755568979651,3.14717191,182.94,182.86,3.1]
[1755568979860,3.82563343,182.93,182.86,3.1]
[1755568980151,3.14717191,182.94,182.86,3.1]
[1755568980355,0.03717191,182.94,182.86,4.72931671]
[1755568980544,0.03717191,182.94,182.87,3.1]
[1755568981151,0.03717191,182.94,182.86,4.72931671]
[1755568981356,0.03717191,182.94,182.87,3.1]
[1755568982956,0.03717191,182.94,182.89,3.1]
[1755568983255,0.03717191,182.94,182.87,3.1]
[1755568983759,3.14717191,182.94,182.87,3.1]
[1755568986257,3.8198399,182.93,182.87,3.1]
[1755568986457,3.14717191,182.94,182.87,3.1]
[1755568986758,3.82033871,182.93,182.87,3.1]
[1755568986958,3.82017428,182.92,182.84,3.1]
[1755568987258,3.14717191,182.94,182.84,3.1]
[1755568987465,3.82107164,182.93,182.84,3.1]
[1755568987668,0.03777645,182.9,182.84,3.1]
[1755568991670,0.03777645,182.9,182.84,7.82931671]
[1755568992071,0.03777645,182.9,182.84,13.29571671]
[1755568992274,0.03777645,182.9,182.86,3.01292536]
[1755568992469,0.03777645,182.9,182.87,3.1]
[1755568992772,3.11,182.95,182.86,3.01292536]
[1755568992976,3.11,182.95,182.86,6.11292536]
[1755568993166,3.01292536,183.0,182.87,3.1]
[1755568993369,3.11,182.98,182.9,3.1]
[1755568993672,0.0362942,182.95,182.89,3.01292536]
[1755568994073,0.0362942,182.95,182.92,3.1]
[1755568995167,0.0362942,182.95,182.91,4.74580535]
[1755568995363,0.0362942,182.95,182.93,3.1]
[1755568995567,0.0362942,182.95,182.91,4.74580535]
[1755568995568,3.11,183.02,182.94,3.1]
[1755568995769,3.82792982,183.01,182.94,3.1]
[1755568995970,0.03842902,182.96,182.94,3.1]
[1755568996367,3.11,183.02,182.94,3.1]
[1755568996566,3.82861574,183.01,182.94,3.1]
[1755568996769,0.03722789,182.97,182.95,3.1]
[1755568997571,0.03722789,182.97,182.96,3.1]
[1755568998675,0.03722789,182.97,182.91,7.84580535]
[1755568998978,0.03722789,182.97,182.91,3.1]
[1755569001368,3.11,182.96,182.87,7.84580535]
[1755569001569,3.11,182.96,182.87,3.1]
[1755569001973,3.11,182.96,182.84,5.4665]
[1755569001974,3.11,182.94,182.84,3.1]
[1755569002176,0.03591446,182.93,182.84,3.1]
[1755569003370,3.08,182.92,182.84,3.1]
[1755569007072,3.08,182.92,182.84,8.5666]
[1755569008374,3.08,182.92,182.86,3.07]
[1755569008877,3.08,182.92,182.82,3.07]
[1755569009180,3.83452963,182.91,182.82,3.07]
[1755569009382,0.03445065,182.89,182.82,3.07]
[1755569010084,3.08,182.88,182.82,3.07]
[1755569011478,3.08,182.88,182.79,7.81580535]
[1755569011684,3.83378159,182.87,182.79,7.81580535]
[1755569011878,3.08,182.88,182.79,3.07]
[1755569012078,3.08,182.86,182.79,3.07]
[1755569012283,3.86715783,182.85,182.79,3.07]
[1755569012584,0.03515199,182.85,182.79,3.07]
[1755569012974,3.08,182.84,182.76,3.07]
[1755569013373,3.08,182.84,182.72,375.76]
[1755569013573,3.82978714,182.83,182.72,375.76]
[1755569013786,3.08,182.84,182.72,375.76]
[1755569013982,3.82267605,182.83,182.72,375.76]
[1755569014286,0.03991294,182.79,182.73,5.4698]
[1755569014594,0.03991294,182.79,182.73,3.07]
[1755569014776,0.03991294,182.79,182.74,5.4696]
[1755569014981,0.03991294,182.79,182.75,3.07]
[1755569015181,3.11991294,182.79,182.75,3.07]
[1755569015977,0.03991294,182.79,182.76,3.07]
[1755569016586,0.03991294,182.79,182.73,3.07]
[1755569018379,0.03991294,182.79,182.75,3.07]
[1755569018881,0.03991294,182.79,182.78,3.07]
[1755569019988,0.03991294,182.79,182.78,8.5384]
[1755569020486,0.03991294,182.79,182.75,3.07]
[1755569020888,3.11991294,182.79,182.75,3.07]
[1755569021085,3.11991294,182.79,182.71,124.34211881]
[1755569021286,0.03991294,182.79,182.72,3.07]
[1755569021587,0.03991294,182.79,182.72,8.5401]
[1755569022685,0.03991294,182.79,182.72,3.07]
[1755569023785,3.08,182.78,182.72,3.07]
[1755569024181,0.03991294,182.79,182.72,3.07]
[1755569024387,0.03991294,182.79,182.73,5.4696]
[1755569024586,0.03991294,182.79,182.72,3.07]
[1755569025291,3.11991294,182.79,182.72,3.07]
[1755569026386,0.03991294,182.79,182.72,3.07]
[1755569026580,0.03991294,182.79,182.75,3.07]
[1755569026781,3.08,182.87,182.77,4.75273901]
[1755569026977,3.08,182.87,182.8,5.4678]
[1755569027390,3.08,182.87,182.81,5.4674]
[1755569027696,3.08,182.87,182.8,3.07]
[1755569028078,3.08,182.86,182.82,0.03964179]
[1755569028283,3.08,182.93,182.82,0.03964179]
[1755569028480,3.08,182.91,182.8,3.07]
[1755569028994,3.08,182.91,182.86,0.04036921]
[1755569029400,3.08,182.89,182.76,3.07]
[1755569029688,3.08,182.87,182.76,3.07]
[1755569030790,0.03909577,182.83,182.78,3.07]
[1755569030993,0.03909577,182.83,182.8,3.07]
[1755569031289,0.03909577,182.83,182.78,5.4683]
[1755569031491,0.03909577,182.83,182.79,3.07]
[1755569031693,0.03909577,182.83,182.77,4.75273901]
[1755569031694,0.03909577,182.83,182.8,3.07]
[1755569032179,0.03909577,182.83,182.77,4.75273901]
[1755569032893,2.91,182.82,182.75,2.93]
[1755569036096,2.91,182.82,182.75,8.3992]
[1755569036290,0.03909577,182.83,182.75,8.3992]
[1755569036685,0.03909577,182.83,182.76,2.93]
[1755569036891,2.91,182.82,182.73,7.68273901]
[1755569037292,2.91,182.82,182.73,2.93]
[1755569037598,0.03737633,182.79,182.73,2.93]
[1755569038994,0.03737633,182.79,182.73,8.3998]
[1755569039187,0.03737633,182.79,182.71,124.57662611]
[1755569039188,0.03737633,182.79,182.75,2.93]
[1755569039391,0.03737633,182.79,182.71,124.57662611]
[1755569039694,0.03737633,182.79,182.77,2.93]
[1755569040286,0.03737633,182.79,182.74,2.93]
[1755569040497,2.94737633,182.79,182.74,2.93]
[1755569040800,0.03737633,182.79,182.74,2.93]
[1755569041001,0.03737633,182.79,182.76,2.93]
[1755569041587,0.03737633,182.79,182.77,2.93]
[1755569041800,0.03737633,182.79,182.73,8.3998]
[1755569042299,0.03737633,182.79,182.74,3.01670321]
[1755569042499,0.03737633,182.79,182.76,2.93]
[1755569042703,0.03737633,182.79,182.75,2.93]
[1755569043000,0.03737633,182.79,182.77,3.01670321]
[1755569043194,0.03737633,182.79,182.75,3.01670321]
[1755569043392,0.03737633,182.79,182.76,2.93]
[1755569045499,0.03737633,182.79,182.75,3.01670321]
[1755569045500,2.91,182.78,182.75,3.01670321]
[1755569046601,0.03737633,182.79,182.75,3.01670321]
[1755569046805,0.03737633,182.79,182.75,5.94670321]
[1755569047902,0.03737633,182.79,182.76,2.93]
[1755569049595,0.03737633,182.79,182.75,3.01670321]
[1755569049800,0.03737633,182.79,182.75,5.94670321]
[1755569050500,2.91,182.78,182.75,3.01670321]
[1755569050697,0.03737633,182.79,182.75,3.01670321]
[1755569051008,2.91,182.78,182.72,5.94670321]
[1755569055701,2.91,182.78,182.72,3.01670321]
[1755569058507,0.03737633,182.79,182.73,2.93]
[1755569059814,0.03737633,182.79,182.71,118.87181881]
[1755569059815,0.03737633,182.79,182.76,2.93]
[1755569060917,2.91,182.78,182.75,3.01670321]
[1755569061221,2.91,182.76,182.72,5.94670321]
[1755569061819,0.03737633,182.79,182.72,5.94670321]
[1755569062728,2.98,182.78,182.72,3.01670321]
[1755569063620,3.82970135,182.77,182.72,3.01670321]
[1755569063823,2.98,182.75,182.72,3.01670321]
[1755569064424,2.98,182.77,182.65,6.01670321]
[1755569064726,2.98,182.74,182.65,6.01670321]
[1755569065128,0.04095523,182.71,182.65,11.48890321]
[1755569066022,0.04095523,182.71,182.65,6.01670321]
[1755569066928,3.02095523,182.71,182.65,3.0]
[1755569067126,3.02095523,182.71,182.63,135.64]
[1755569067331,3.02095523,182.71,182.63,138.65670321]
[1755569068525,3.02095523,182.71,182.64,3.0]
[1755569069022,3.02095523,182.71,182.63,138.65670321]
[1755569069623,3.02095523,182.71,182.6,3.0]
[1755569069829,3.02095523,182.71,182.6,6.01670321]
[1755569070027,2.98,182.71,182.6,6.01670321]
[1755569070337,0.03978659,182.67,182.6,6.01670321]
[1755569070530,3.01978659,182.67,182.6,6.01670321]
[1755569071838,3.01978659,182.67,182.57,135.66]
[1755569072133,3.01978659,182.67,182.57,138.67670321]
[1755569072728,3.01978659,182.67,182.58,3.0]
[1755569073329,3.01978659,182.67,182.61,3.0]
[1755569075336,0.03978659,182.67,182.64,3.0]
[1755569075734,0.03978659,182.67,182.65,3.0]
[1755569075931,0.03978659,182.67,182.66,3.01670321]
[1755569076243,2.98,182.73,182.66,6.01670321]
[1755569076736,2.98,182.73,182.66,11.48850321]
[1755569077541,2.98,182.73,182.67,5.4715]
[1755569077836,2.98,182.77,182.72,3.01670321]
[1755569078029,2.98,182.8,182.72,3.01670321]
[1755569078225,2.98,182.8,182.65,135.80020659]
[1755569078226,2.98,182.8,182.69,3.01670321]
[1755569078433,3.01670321,182.76,182.66,3.01670321]
[1755569078634,3.01670321,182.76,182.74,0.03535234]
[1755569078830,3.85573881,182.75,182.64,3.01670321]
[1755569079028,2.98,182.73,182.64,3.01670321]
[1755569079832,2.98,182.73,182.65,3.0]
[1755569081242,2.98,182.73,182.65,8.4723]
[1755569081433,0.03516534,182.71,182.65,8.4723]
[1755569081940,0.03516534,182.71,182.65,3.0]
[1755569082442,0.03516534,182.71,182.64,3.01670321]
[1755569082443,3.01516534,182.71,182.64,3.01670321]
[1755569083033,3.01516534,182.71,182.64,6.01670321]
[1755569085540,0.03516534,182.71,182.65,3.0]
[1755569086641,2.98,182.7,182.64,3.01670321]
[1755569086940,2.98,182.7,182.61,6.01670321]
[1755569088349,0.03938925,182.67,182.61,6.01670321]
[1755569089350,3.01938925,182.67,182.61,6.01670321]
[1755569090843,3.01938925,182.67,182.61,3.01670321]
[1755569091349,3.01938925,182.67,182.58,3.01670321]
[1755569091640,3.01938925,182.67,182.55,3.01670321]
[1755569091844,3.01670321,182.65,182.53,122.19026078]
[1755569092041,2.98,182.64,182.53,122.19026078]
[1755569092441,2.96,182.6,182.53,122.19026078]
[1755569094042,0.03779012,182.61,182.54,2.96]
[1755569094249,3.01670321,182.7,182.58,3.01670321]
[1755569094439,6.81816327,182.69,182.58,3.01670321]
[1755569094644,2.96,182.69,182.59,2.96]
[1755569095252,2.96,182.69,182.59,8.434]
[1755569095547,2.96,182.69,182.62,0.04070933]
[1755569096052,2.96,182.66,182.62,0.04070933]
[1755569096242,2.96,182.69,182.62,0.04070933]
[1755569096641,3.86097677,182.68,182.62,0.04070933]
[1755569096847,2.96,182.69,182.62,0.04070933]
[1755569100256,2.96,182.79,182.68,2.96]
[1755569100455,2.96,182.77,182.68,2.96]
[1755569100652,2.96,182.75,182.64,3.01670321]
[1755569100848,2.96,182.73,182.64,3.01670321]
[1755569101052,2.96,182.72,182.71,0.03448951]
[1755569101356,0.03566434,182.7,182.61,3.01670321]
[1755569101947,6.82220505,182.69,182.59,2.96]
[1755569102147,2.96,182.69,182.59,2.96]
[1755569103053,2.96,182.69,182.62,2.96]
[1755569104054,0.03704222,182.67,182.62,2.96]
[1755569104252,2.99704222,182.67,182.62,2.96]
[1755569104453,2.99704222,182.67,182.58,5.97670321]
[1755569104757,2.96,182.67,182.58,5.97670321]
[1755569105456,2.96,182.67,182.59,5.4741]
[1755569107257,2.96,182.74,182.62,2.96]
[1755569107557,3.86832689,182.73,182.64,3.01670321]
[1755569107758,3.86832689,182.72,182.64,8.48920321]
[1755569108053,3.86832689,182.71,182.64,8.48920321]
[1755569108259,2.96,182.74,182.64,3.01670321]
[1755569108461,3.8699764,182.73,182.64,3.01670321]
[1755569108656,3.8699764,182.72,182.64,3.01670321]
[1755569108848,3.8699764,182.71,182.64,3.01670321]
[1755569109053,2.96,182.74,182.64,3.01670321]
[1755569109257,3.86955874,182.73,182.64,3.01670321]
[1755569109454,3.86955874,182.72,182.64,3.01670321]
[1755569109656,6.82955874,182.71,182.64,8.48930321]
[1755569109860,2.96,182.71,182.64,8.48930321]
[1755569110368,2.96,182.71,182.64,3.01670321]
[1755569110665,2.96,182.78,182.67,3.01670321]
[1755569110955,2.96,182.76,182.67,3.01670321]
[1755569111162,3.87321295,182.75,182.67,3.01670321]
[1755569111365,2.96,182.73,182.67,3.01670321]
[1755569111558,3.87321295,182.72,182.65,2.96]
[1755569112556,2.96,182.71,182.64,3.01670321]
[1755569112753,3.87321295,182.7,182.64,3.01670321]
[1755569113158,2.96,182.71,182.64,3.01670321]
[1755569113361,2.96,182.71,182.65,2.96]
[1755569113861,2.96,182.71,182.64,3.01670321]
[1755569114168,3.8722054,182.7,182.64,3.01670321]
[1755569114362,2.96,182.71,182.64,3.01670321]
[1755569114564,3.87283244,182.7,182.64,3.01670321]
[1755569114759,2.96,182.71,182.64,3.01670321]
[1755569115155,3.87243041,182.7,182.61,5.97670321]
[1755569115364,2.96,182.71,182.61,5.97670321]
[1755569115365,6.83225973,182.69,182.61,2.96]
[1755569115559,3.87192482,182.68,182.61,2.96]
[1755569115763,2.96,182.69,182.61,2.96]
[1755569116063,3.87192857,182.68,182.61,2.96]
[1755569116253,3.87192857,182.67,182.61,2.96]
[1755569116458,6.83192857,182.66,182.6,3.01670321]
[1755569116656,2.96,182.66,182.6,3.01670321]
[1755569117063,2.96,182.66,182.58,3.01670321]
[1755569117264,3.87177067,182.65,182.57,2.96]
[1755569117465,2.96,182.63,182.55,3.01670321]
[1755569118766,2.96,182.61,182.53,2.96]
[1755569119670,3.86833012,182.6,182.49,5.97670321]
[1755569119867,6.82814521,182.59,182.49,5.97670321]
[1755569120168,2.96,182.59,182.49,5.97670321]
[1755569120463,2.96,182.59,182.48,3.01670321]
[1755569120671,2.96,182.57,182.48,3.01670321]
[1755569121166,3.86244329,182.56,182.46,2.96]
[1755569121368,2.96,182.55,182.46,2.96]
[1755569122762,2.96,182.55,182.47,3.01670321]
[1755569122967,2.96,182.55,182.48,2.97]
[1755569123466,2.94,182.59,182.51,2.97]
[1755569125158,2.94,182.59,182.48,5.98670321]
[1755569126475,2.94,182.59,182.48,2.97]
[1755569126967,0.95352915,182.61,182.51,2.97]
[1755569127369,0.95352915,182.61,182.51,8.4462]
[1755569127772,0.95352915,182.61,182.51,2.97]
[1755569128071,0.95352915,182.61,182.51,8.4465]
[1755569129875,0.95352915,182.61,182.52,5.476]
[1755569130071,2.94,182.62,182.5,2.97]
[1755569130767,2.94,182.62,182.53,2.97]
[1755569131167,139.82,182.66,182.57,2.97]
[1755569131374,3.85542986,182.65,182.57,2.97]
[1755569131570,3.85542986,182.64,182.57,2.97]
[1755569131771,139.82,182.66,182.57,2.97]
[1755569132175,139.82,182.66,182.57,8.4446]
[1755569132374,139.82,182.66,182.57,2.97]
[1755569133072,2.94,182.64,182.53,2.97]
[1755569133578,2.94,182.62,182.53,2.97]
[1755569137677,145.54045602,182.66,182.53,2.97]
[1755569137872,3.83084563,182.65,182.53,2.97]
[1755569138081,6.77084563,182.64,182.53,2.97]
[1755569138279,2.94,182.62,182.53,2.97]
[1755569143577,136.64,182.64,182.55,2.97]
[1755569144273,0.03679376,182.61,182.55,2.97]
[1755569144474,0.03679376,182.61,182.55,8.4451]
[1755569144681,0.03679376,182.61,182.55,2.97]
[1755569144877,2.94,182.6,182.51,2.97]
[1755569152486,3.17,182.58,182.47,6.12481864]
[1755569152687,3.17,182.58,182.47,3.1]
[1755569152886,3.02481864,182.56,182.47,3.1]
[1755569153080,3.17,182.55,182.47,3.1]
[1755569154285,3.17,182.55,182.44,3.02481864]
[1755569155790,3.17,182.55,182.43,3.1]
[1755569156289,3.17,182.52,182.43,3.1]
[1755569157390,3.17,182.52,182.39,3.02481864]
[1755569157591,3.17,182.52,182.39,6.12481864]
[1755569158093,3.17,182.52,182.4,3.1]
[1755569158287,3.17,182.52,182.42,3.02481864]
[1755569158489,3.17,182.52,182.45,6.12481864]
[1755569159397,3.17,182.52,182.45,3.1]
[1755569160193,3.17,182.55,182.45,3.1]
[1755569160391,3.83443569,182.54,182.45,3.1]
[1755569160685,3.17,182.55,182.45,3.1]
[1755569160885,3.83520676,182.54,182.45,3.1]
[1755569161085,3.17,182.55,182.45,3.1]
[1755569161288,3.83569222,182.54,182.45,3.1]
[1755569161488,3.17,182.55,182.45,3.1]
[1755569161686,3.83510175,182.54,182.45,3.1]
[1755569161886,3.17,182.55,182.45,3.1]
[1755569162087,3.83281077,182.54,182.45,3.1]
[1755569162287,3.17,182.55,182.47,3.02481864]
[1755569162489,3.17,182.58,182.48,3.1]
[1755569162785,3.8341037,182.57,182.48,3.1]
[1755569163090,3.8341037,182.56,182.48,3.1]
[1755569163395,3.8341037,182.55,182.48,3.1]
[1755569163595,3.17,182.58,182.48,3.1]
[1755569163788,3.83574826,182.57,182.48,3.1]
[1755569163987,3.83574826,182.56,182.48,3.1]
[1755569164189,3.17,182.58,182.48,3.1]
[1755569164492,3.83596458,182.57,182.48,3.1]
[1755569164696,3.83596458,182.56,182.48,3.1]
[1755569164893,3.17,182.58,182.48,3.1]
[1755569165093,3.83661128,182.57,182.48,3.1]
[1755569165296,3.17,182.58,182.48,3.1]
[1755569165297,3.83661128,182.56,182.48,3.1]
[1755569165492,3.17,182.58,182.48,3.1]
[1755569165696,136.56,182.59,182.51,3.1]
[1755569165894,3.83786688,182.58,182.51,3.1]
[1755569166195,0.03460611,182.55,182.52,3.1]
[1755569166490,0.03460611,182.55,182.53,3.1]
[1755569166693,0.03460611,182.55,182.5,3.02481864]
[1755569166893,0.03460611,182.55,182.53,3.1]
[1755569167191,0.03460611,182.55,182.5,3.02481864]
[1755569167392,0.03460611,182.55,182.53,3.1]
[1755569168089,0.03460611,182.55,182.54,3.1]
[1755569171891,3.17,182.62,182.54,3.1]
[1755569172398,139.51,182.66,182.56,3.1]
[1755569172696,3.8427872,182.65,182.56,3.1]
[1755569172891,139.51,182.66,182.56,3.1]
[1755569172892,3.8427872,182.64,182.56,8.5749]
[1755569173096,3.8427872,182.63,182.59,0.03645194]
[1755569173399,139.51,182.66,182.6,3.1]
[1755569174299,3.83927011,182.65,182.59,0.03645194]
[1755569174501,10.03408875,182.64,182.59,0.03645194]
[1755569174703,3.83927011,182.63,182.59,0.03645194]
[1755569174906,7.00927011,182.62,182.59,0.03645194]
[1755569175095,4.12317657,182.65,182.59,0.03645194]
[1755569175395,3.17,182.63,182.59,0.03645194]
[1755569175598,3.17,182.62,182.59,0.03645194]
[1755569176495,136.34,182.66,182.59,0.03645194]
[1755569176699,3.83657734,182.65,182.59,0.03645194]
[1755569176901,3.17,182.63,182.59,0.03645194]
[1755569177698,3.17,182.63,182.59,3.13645194]
[1755569179603,3.17,182.65,182.59,0.03645194]
[1755569179904,3.17,182.62,182.59,0.03645194]
[1755569180102,3.17,182.6,182.59,0.03645194]
[1755569181703,139.47,182.6,182.59,0.03645194]
[1755569182006,3.17,182.59,182.5,3.02481864]
[1755569182200,3.17,182.59,182.49,3.1]
[1755569183105,2.96,182.57,182.49,3.1]
[1755569185011,2.96,182.55,182.45,2.89]
[1755569185208,2.96,182.53,182.45,2.89]
[1755569188609,2.96,182.53,182.41,2.89]
[1755569188907,2.96,182.51,182.41,2.89]
[1755569195619,2.96,182.48,182.34,3.84390815]
[1755569195820,2.96,182.48,182.35,5.91481864]
[1755569196013,2.96,182.48,182.39,2.89]
[1755569196314,2.96,182.48,182.39,5.91481864]
[1755569196507,2.96,182.48,182.4,2.89]
[1755569198014,2.96,182.48,182.4,5.91481864]
[1755569198520,136.18,182.51,182.41,2.89]
[1755569198715,136.18,182.51,182.44,2.89]
[1755569198915,368.16,182.53,182.46,3.02481864]
[1755569199121,368.16,182.53,182.47,2.89]
[1755569199922,2.96,182.55,182.47,2.89]
[1755569200116,2.96,182.55,182.47,8.3676]
[1755569200717,136.32,182.57,182.5,2.89]
[1755569201318,2.96,182.62,182.53,2.89]
[1755569201522,368.2,182.63,182.4,3.02481864]
[1755569201523,368.2,182.63,182.56,2.89]
[1755569202515,2.96,182.62,182.52,2.89]
[1755569202720,2.96,182.6,182.49,3.02481864]
[1755569202916,2.96,182.6,182.48,2.89]
[1755569203125,3.82405773,182.59,182.48,2.89]
[1755569203316,143.2639696,182.58,182.48,2.89]
[1755569203520,139.44,182.58,182.48,2.89]
[1755569204726,6.78578565,182.57,182.48,2.89]
[1755569204928,2.96,182.57,182.48,2.89]
[1755569206722,136.48,182.58,182.5,8.3667]
[1755569207527,2.96,182.61,182.52,5.91481864]
[1755569209823,2.96,182.61,182.49,3.02481864]
[1755569210031,2.96,182.58,182.48,2.89]
[1755569210225,136.44,182.57,182.48,2.89]
[1755569210728,2.96,182.56,182.48,2.89]
[1755569210930,5.98481864,182.56,182.46,3.02481864]
[1755569211126,2.96,182.55,182.44,2.89]
[1755569212229,3.01,182.53,182.44,2.89]
[1755569212432,6.03481864,182.53,182.44,2.89]
[1755569213030,3.01,182.52,182.44,2.89]
[1755569217834,3.01,182.56,182.44,2.89]
[1755569218032,3.82478049,182.55,182.44,2.89]
[1755569218336,3.01,182.53,182.44,2.89]
[1755569222243,3.01,182.53,182.45,2.97]
[1755569225545,3.01,182.53,182.46,2.97]
[1755569225741,3.01,182.53,182.46,5.99481864]
[1755569225945,139.45,182.57,182.49,3.02481864]
[1755569226244,139.45,182.57,182.38,125.0334994]
[1755569226245,136.44,182.57,182.52,3.02481864]
[1755569226438,136.44,182.57,182.53,2.97]
[1755569226646,139.45,182.57,182.53,2.97]
[1755569227443,3.01,182.61,182.53,2.97]
[1755569227643,3.83613324,182.6,182.53,2.97]
[1755569227842,3.01,182.61,182.55,5.99481864]
[1755569228442,368.2,182.63,182.55,5.99481864]
[1755569229145,136.3,182.64,182.57,5.4746]
[1755569229332,136.3,182.64,182.58,3.02481864]
[1755569229532,136.3,182.64,182.58,2.97]
[1755569229744,3.01,182.63,182.55,3.02481864]